fUSD/lending_fUSD_20241112
["ID","MTS","AMOUNT","RATE_DAILY","PERIOD"]
[342031374,1731372635696,-500.0,0.00013698,2]
[342031375,1731372635705,-310.60938911,0.00013698,2]
[342031376,1731372635714,-500.0,0.00013698,2]
[342031377,1731372635723,-500.0,0.00013698,2]
[342031378,1731372635732,-500.0,0.00013698,2]
[342031379,1731372635741,-500.0,0.00013698,2]
[342031380,1731372635751,-500.0,0.00013698,2]
[342031381,1731372635760,-500.0,0.00013698,2]
[342031382,1731372635769,-250.0,0.00013698,2]
[342031383,1731372635779,-500.0,0.00013698,2]
[342031384,1731372635789,-500.0,0.00013698,2]
[342031385,1731372635798,-500.0,0.00013698,2]
[342031386,1731372635807,-500.0,0.00013698,2]
[342031387,1731372635816,-500.0,0.00013698,2]
[342031388,1731372635826,-500.0,0.00013698,2]
[342031389,1731372635835,-500.0,0.00013698,2]
[342031390,1731372635844,-500.0,0.00013698,2]
[342031391,1731372635852,-500.0,0.00013698,2]
[342031392,1731372635861,-500.0,0.00013698,2]
[342031393,1731372635871,-500.0,0.00013698,2]
[342031394,1731372635880,-500.0,0.00013698,2]
[342031395,1731372635889,-500.0,0.00013698,2]
[342031396,1731372635898,-500.0,0.00013698,2]
[342031397,1731372635906,-500.0,0.00013698,2]
[342031398,1731372635916,-500.0,0.00013698,2]
[342031399,1731372635925,-500.0,0.00013698,2]
[342031400,1731372635935,-500.0,0.00013698,2]
[342031401,1731372635947,-500.0,0.00013698,2]
[342031402,1731372635955,-500.0,0.00013698,2]
[342031403,1731372635965,-500.0,0.00013698,2]
[342031404,1731372635974,-500.0,0.00013698,2]
[342031405,1731372635983,-500.0,0.00013698,2]
[342031406,1731372635992,-357.0836756,0.00013698,2]
[342031407,1731372636001,-500.0,0.00013698,2]
[342031408,1731372636010,-500.0,0.00013698,2]
[342031409,1731372636019,-500.0,0.00013698,2]
[342031410,1731372636028,-500.0,0.00013698,2]
[342031411,1731372636037,-402.14,0.00013698,2]
[342031412,1731372636046,-500.0,0.00013698,2]
[342031413,1731372636055,-582.33729369,0.00013698,2]
[342031414,1731372636064,-500.0,0.00013698,2]
[342031415,1731372636073,-500.0,0.00013698,2]
[342031416,1731372636082,-500.0,0.00013698,2]
[342031417,1731372636091,-500.0,0.00013698,2]
[342031418,1731372636100,-500.0,0.00013698,2]
[342031419,1731372636109,-500.0,0.00013698,2]
[342031420,1731372636118,-500.0,0.00013698,2]
[342031421,1731372636127,-500.0,0.00013698,2]
[342031422,1731372636136,-500.0,0.00013698,2]
[342031423,1731372636145,-500.0,0.00013698,2]
[342031424,1731372636154,-500.0,0.00013698,2]
[342031425,1731372636163,-377.10984137,0.00013698,2]
[342031426,1731372636172,-500.0,0.00013698,2]
[342031427,1731372636181,-500.0,0.00013698,2]
[342031428,1731372636193,-432.05724792,0.00013698,2]
[342031429,1731372636202,-508.3699984,0.00013698,2]
[342031430,1731372636211,-500.0,0.00013698,2]
[342031431,1731372636220,-500.0,0.00013698,2]
[342031432,1731372636230,-500.0,0.00013698,2]
[342031433,1731372636240,-857.06,0.00013698,2]
[342031434,1731372636249,-500.0,0.00013698,2]
[342031435,1731372636258,-500.0,0.00013698,2]
[342031436,1731372636267,-500.0,0.00013698,2]
[342031437,1731372636276,-500.0,0.00013698,2]
[342031438,1731372636286,-500.0,0.00013698,2]
[342031439,1731372636294,-500.0,0.00013698,2]
[342031440,1731372636304,-500.0,0.00013698,2]
[342031441,1731372636313,-532.71,0.00013698,2]
[342031442,1731372636323,-500.0,0.00013698,2]
[342031443,1731372636332,-500.0,0.00013698,2]
[342031444,1731372636342,-500.0,0.00013698,2]
[342031445,1731372636352,-500.0,0.00013698,2]
[342031446,1731372636362,-500.0,0.00013698,2]
[342031447,1731372636372,-500.0,0.00013698,2]
[342031448,1731372636382,-500.0,0.00013698,2]
[342031449,1731372636392,-500.0,0.00013698,2]
[342031450,1731372636401,-500.0,0.00013698,2]
[342031451,1731372636411,-500.0,0.00013698,2]
[342031452,1731372636420,-500.0,0.00013698,2]
[342031453,1731372636430,-500.0,0.00013698,2]
[342031454,1731372636439,-500.0,0.00013698,2]
[342031455,1731372636449,-500.0,0.00013698,2]
[342031456,1731372636459,-500.0,0.00013698,2]
[342031457,1731372636469,-500.0,0.00013698,2]
[342031458,1731372636478,-500.0,0.00013698,2]
[342031459,1731372636487,-500.0,0.00013698,2]
[342031460,1731372636497,-500.0,0.00013698,2]
[342031461,1731372636506,-500.0,0.00013698,2]
[342031462,1731372636515,-500.0,0.00013698,2]
[342031463,1731372636524,-500.0,0.00013698,2]
[342031464,1731372636533,-260.61,0.00013698,2]
[342031465,1731372636542,-500.0,0.00013698,2]
[342031466,1731372636551,-456.1,0.00013698,2]
[342031467,1731372636561,-500.0,0.00013698,2]
[342031468,1731372636570,-1619.72,0.00013698,2]
[342031469,1731372636579,-1619.72,0.00013698,2]
[342031470,1731372636588,-500.0,0.00013698,2]
[342031471,1731372636597,-500.0,0.00013698,2]
[342031472,1731372636606,-500.0,0.00013698,2]
[342031473,1731372636615,-588.30533388,0.00013698,2]
[342031474,1731372636624,-500.0,0.00013698,2]
[342031475,1731372636634,-500.0,0.00013698,2]
[342031476,1731372636643,-500.0,0.00013698,2]
[342031477,1731372636652,-500.0,0.00013698,2]
[342031478,1731372636661,-508.96201135,0.00013698,2]
[342031479,1731372636672,-500.0,0.00013698,2]
[342031480,1731372636681,-940.78,0.00013698,2]
[342031481,1731372636690,-940.78,0.00013698,2]
[342031482,1731372636703,-172.501721,0.00013698,2]
[342031483,1731372636714,-638.46,0.00013698,2]
[342031484,1731372636723,-500.0,0.00013698,2]
[342031485,1731372636732,-500.0,0.00013698,2]
[342031486,1731372636741,-500.0,0.00013698,2]
[342031487,1731372636751,-500.0,0.00013698,2]
[342031488,1731372636760,-500.0,0.00013698,2]
[342031489,1731372636770,-500.0,0.00013698,2]
[342031490,1731372636779,-500.0,0.00013698,2]
[342031491,1731372636788,-500.0,0.00013698,2]
[342031492,1731372636797,-500.0,0.00013698,2]
[342031493,1731372636806,-500.0,0.00013698,2]
[342031494,1731372636816,-7526.16,0.00013698,2]
[342031495,1731372636825,-250.0,0.00013699,2]
[342031496,1731372636835,-200.0,0.00013699,2]
[342031497,1731372636845,-3024.58,0.00013699,2]
[342031498,1731372636854,-150.0,0.00013699,2]
[342031499,1731372636863,-1400.0,0.000137,5]
[342031500,1731372636872,-528.65,0.00013742,2]
[342031501,1731372636883,-2100.0,0.000138,5]
[342031502,1731372636892,-150.99,0.000138,2]
[342031503,1731372636901,-150.99,0.000138,2]
[342031504,1731372636910,-418.43,0.000138,2]
[342031505,1731372636919,-580.52,0.00013809,2]
[342031506,1731372636929,-200.0,0.00013859,2]
[342031507,1731372636938,-200.0,0.00013859,2]
[342031508,1731372636949,-200.0,0.00013859,2]
[342031509,1731372636959,-1695.15640484,0.00013859,2]
[342031510,1731372636968,-772.64390516,0.0001386,2]
[342031511,1731372636977,-10700.76445662,0.0001386,2]
[342031512,1731372636986,-4681.22413438,0.00013862,2]
[342031513,1731372636995,-1321.38391655,0.00013865,2]
[342031514,1731372637004,-1321.38391655,0.00013866,2]
[342031515,1731372637013,-4681.22413438,0.00013868,2]
[342031516,1731372637022,-1695.15640484,0.00013869,2]
[342031517,1731372637031,-10700.76445662,0.0001387,2]
[342031518,1731372637040,-772.64390516,0.00013873,2]
[342031519,1731372637049,-772.64390516,0.00013874,2]
[342031520,1731372637058,-200.0,0.00013877,2]
[342031521,1731372637067,-772.64390516,0.00013878,2]
[342031522,1731372637076,-987.51802568,0.00013881,2]
[342031523,1731372637085,-1321.38391655,0.00013882,2]
[342031524,1731372637094,-987.51802568,0.00013882,2]
[342031525,1731372637103,-987.51802568,0.00013884,2]
[342031526,1731372637111,-4681.22413438,0.00013886,2]
[342031527,1731372637121,-1695.15640484,0.00013887,2]
[342031528,1731372637130,-6137.72988814,0.00013888,2]
[342031529,1731372637147,-2176.37284977,0.00013888,2]
[342031530,1731372637158,-1297.00343464,0.00013888,2]
[342031531,1731372637169,-1089.65828407,0.00013888,2]
[342031532,1731372637179,-772.64390516,0.00013889,2]
[342031533,1731372637189,-84.91962657,0.00013889,2]
[342031534,1731372637205,-1236.46428998,0.00013889,2]
[342031535,1731372637214,-1380.12370261,0.0001389,2]
[342031536,1731372637228,-171.63529739,0.0001389,2]
[342031537,1731372637238,-1326.83360981,0.00013892,2]
[342031538,1731372637259,-2493.90521683,0.00013892,2]
[342031539,1731372637272,-860.48530774,0.00013892,2]
[342031540,1731372637282,-440.87866732,0.00013892,2]
[342031541,1731372637293,-950.26546194,0.00013892,2]
[342031542,1731372637304,-304.01227558,0.00013892,2]
[342031543,1731372637313,-962.58948349,0.00013892,2]
[342031544,1731372637337,-595.47812,0.00013892,2]
[342031545,1731372637355,-137.08880135,0.00013892,2]
[342031546,1731372637364,-961.00119865,0.00013893,2]
[342031547,1731372637375,-26.51682703,0.00013893,2]
[342031548,1731372637384,-1978.68457291,0.00013894,2]
[342031551,1731372638024,-2702.53956147,0.00013894,2]
[342031552,1731372638033,-10700.76445662,0.00013896,2]
[342031553,1731372638043,-4681.22413438,0.00013897,2]
[342031554,1731372638052,-1321.38391655,0.00013898,2]
[342031555,1731372638062,-987.51802568,0.00013898,2]
[342031556,1731372638071,-5097.13494847,0.00013898,2]
[342031557,1731372638311,-2011.67658288,0.00013898,2]
[342031558,1731372638343,-462.45588772,0.00013898,2]
[342031559,1731372638354,-721.27374421,0.00013898,2]
[342031560,1731372638365,-2408.22329334,0.00013898,2]
[342031561,1731372638375,-1923.71672087,0.00013898,2]
[342031562,1731372638385,-1001.79415839,0.00013898,2]
[342031563,1731372638401,-7775.25357736,0.00013898,2]
[342031564,1731372638410,-772.64390516,0.00013899,2]
[342031565,1731372638419,-1695.15640484,0.00013899,2]
[342031566,1731372638428,-987.51802568,0.00013899,2]
[342031567,1731372638437,-1321.38391655,0.000139,2]
[342031568,1731372638446,-400.0,0.000139,3]
[342031569,1731372638456,-2800.0,0.000139,5]
[342031570,1731372638465,-432.43,0.000139,2]
[342031571,1731372638475,-150.0,0.000139,2]
[342031572,1731372638484,-793.26,0.000139,2]
[342031573,1731372638493,-187.44,0.00013948,2]
[342031574,1731372638502,-274.7,0.00013998,2]
[342031575,1731372638511,-500.0,0.00013998,2]
[342031576,1731372638521,-500.0,0.00013998,2]
[342031577,1731372638530,-537.35990973,0.00013998,2]
[342031578,1731372638539,-500.0,0.00013998,2]
[342031579,1731372638549,-266.62,0.00013998,2]
[342031580,1731372638557,-500.0,0.00013998,2]
[342031581,1731372638567,-500.0,0.00013998,2]
[342031582,1731372638575,-500.0,0.00013998,2]
[342031583,1731372638584,-500.0,0.00013998,2]
[342031584,1731372638593,-500.0,0.00013998,2]
[342031585,1731372638602,-500.0,0.00013998,2]
[342031586,1731372638612,-250.91585663,0.00013998,2]
[342031587,1731372638627,-249.08414337,0.00013998,2]
[342031588,1731372638637,-500.0,0.00013998,2]
[342031589,1731372638646,-500.0,0.00013998,2]
[342031590,1731372638659,-500.0,0.00013998,2]
[342031591,1731372638670,-500.0,0.00013999,2]
[342031592,1731372638682,-500.0,0.00013999,2]
[342031593,1731372638691,-500.0,0.00013999,2]
[342031594,1731372638701,-233.1022485,0.00013999,2]
[342031595,1731372638711,-1516.4,0.00013999,2]
[342031596,1731372638721,-1516.4,0.00013999,2]
[342031597,1731372638731,-1516.4,0.00013999,2]
[342031598,1731372638740,-1516.4,0.00013999,2]
[342031599,1731372638751,-1516.4,0.00013999,2]
[342031600,1731372638760,-1516.4,0.00013999,2]
[342031601,1731372638768,-1516.4,0.00013999,2]
[342031602,1731372638780,-1516.4,0.00013999,2]
[342031603,1731372638789,-500.0,0.00013999,2]
[342031604,1731372638799,-500.0,0.00013999,2]
[342031605,1731372638808,-500.0,0.00013999,2]
[342031606,1731372638817,-500.0,0.00013999,2]
[342031607,1731372638826,-500.0,0.00013999,2]
[342031608,1731372638836,-500.0,0.00013999,2]
[342031609,1731372638845,-500.0,0.00013999,2]
[342031610,1731372638854,-500.0,0.00013999,2]
[342031611,1731372638865,-500.0,0.00013999,2]
[342031612,1731372638874,-1029.59,0.00013999,2]
[342031613,1731372638884,-1029.59,0.00013999,2]
[342031614,1731372638893,-1029.59,0.00013999,2]
[342031615,1731372638903,-1029.59,0.00013999,2]
[342031616,1731372638912,-1029.59,0.00013999,2]
[342031617,1731372638921,-1029.59,0.00013999,2]
[342031618,1731372638930,-1029.59,0.00013999,2]
[342031619,1731372638940,-1029.59,0.00013999,2]
[342031620,1731372638951,-909.28,0.00013999,2]
[342031621,1731372638961,-909.28,0.00013999,2]
[342031622,1731372638970,-909.28,0.00013999,2]
[342031623,1731372638980,-909.28,0.00013999,2]
[342031624,1731372638989,-909.28,0.00013999,2]
[342031625,1731372638998,-909.28,0.00013999,2]
[342031626,1731372639009,-909.28,0.00013999,2]
[342031627,1731372639018,-782.33,0.00013999,2]
[342031628,1731372639027,-909.28,0.00013999,2]
[342031629,1731372639036,-782.33,0.00013999,2]
[342031630,1731372639045,-782.33,0.00013999,2]
[342031631,1731372639054,-782.33,0.00013999,2]
[342031632,1731372639064,-782.33,0.00013999,2]
[342031633,1731372639073,-782.33,0.00013999,2]
[342031634,1731372639082,-782.33,0.00013999,2]
[342031635,1731372639091,-782.33,0.00013999,2]
[342031636,1731372639100,-1084.44,0.00013999,2]
[342031637,1731372639109,-500.0,0.00013999,2]
[342031638,1731372639119,-1084.44,0.00013999,2]
[342031639,1731372639133,-500.0,0.00013999,2]
[342031640,1731372639142,-1084.44,0.00013999,2]
[342031641,1731372639152,-500.0,0.00013999,2]
[342031642,1731372639162,-1084.44,0.00013999,2]
[342031643,1731372639171,-518.77553779,0.00013999,2]
[342031644,1731372639180,-1084.44,0.00013999,2]
[342031645,1731372639189,-1084.44,0.00013999,2]
[342031646,1731372639200,-1084.44,0.00013999,2]
[342031647,1731372639211,-1084.44,0.00013999,2]
[342031648,1731372639221,-500.0,0.00013999,2]
[342031649,1731372639231,-500.0,0.00013999,2]
[342031650,1731372639240,-500.0,0.00013999,2]
[342031651,1731372639249,-500.0,0.00013999,2]
[342031652,1731372639259,-500.0,0.00013999,2]
[342031653,1731372639269,-500.0,0.00013999,2]
[342031654,1731372639279,-500.0,0.00013999,2]
[342031655,1731372639288,-500.0,0.00013999,2]
[342031656,1731372639297,-500.0,0.00013999,2]
[342031657,1731372639306,-500.26642831,0.00013999,2]
[342031658,1731372639315,-500.0,0.00013999,2]
[342031659,1731372639324,-500.0,0.00013999,2]
[342031661,1731372639333,-500.0,0.00013999,2]
[342031662,1731372639342,-500.0,0.00013999,2]
[342031664,1731372639351,-500.0,0.00013999,2]
[342031665,1731372639360,-500.0,0.00013999,2]
[342031666,1731372639369,-500.0,0.00013999,2]
[342031667,1731372639379,-500.0,0.00013999,2]
[342031670,1731372639388,-500.0,0.00013999,2]
[342031672,1731372639397,-500.0,0.00013999,2]
[342031673,1731372639406,-500.0,0.00013999,2]
[342031674,1731372639415,-500.0,0.00013999,2]
[342031675,1731372639425,-500.0,0.00013999,2]
[342031676,1731372639435,-500.0,0.00013999,2]
[342031677,1731372639445,-500.0,0.00013999,2]
[342031678,1731372639454,-500.0,0.00013999,2]
[342031679,1731372639464,-500.0,0.00013999,2]
[342031680,1731372639473,-500.0,0.00013999,2]
[342031681,1731372639487,-500.0,0.00013999,2]
[342031682,1731372639496,-500.0,0.00013999,2]
[342031683,1731372639506,-150.55133151,0.00013999,2]
[342031684,1731372639515,-637.16,0.00013999,2]
[342031685,1731372639523,-637.16,0.00013999,2]
[342031686,1731372639532,-637.16,0.00013999,2]
[342031687,1731372639541,-637.16,0.00013999,2]
[342031688,1731372639551,-637.16,0.00013999,2]
[342031689,1731372639560,-637.16,0.00013999,2]
[342031690,1731372639570,-637.16,0.00013999,2]
[342031691,1731372639579,-637.16,0.00013999,2]
[342031692,1731372639589,-1743.02,0.00013999,2]
[342031693,1731372639598,-1743.02,0.00013999,2]
[342031694,1731372639608,-1743.02,0.00013999,2]
[342031695,1731372639617,-1743.02,0.00013999,2]
[342031696,1731372639627,-1743.02,0.00013999,2]
[342031697,1731372639636,-1743.02,0.00013999,2]
[342031698,1731372639645,-1743.02,0.00013999,2]
[342031699,1731372639655,-1743.02,0.00013999,2]
[342031700,1731372639665,-500.0,0.00013999,2]
[342031701,1731372639676,-500.0,0.00013999,2]
[342031702,1731372639691,-500.0,0.00013999,2]
[342031703,1731372639702,-500.0,0.00013999,2]
[342031704,1731372639711,-500.0,0.00013999,2]
[342031705,1731372639721,-500.0,0.00013999,2]
[342031706,1731372639731,-500.0,0.00013999,2]
[342031707,1731372639740,-500.0,0.00013999,2]
[342031708,1731372639751,-500.0,0.00013999,2]
[342031709,1731372639760,-500.0,0.00013999,2]
[342031710,1731372639770,-500.0,0.00013999,2]
[342031711,1731372639779,-500.0,0.00013999,2]
[342031712,1731372639788,-168.40928622,0.00013999,2]
[342031713,1731372639798,-500.0,0.00013999,2]
[342031714,1731372639807,-377.21069489,0.00013999,2]
[342031715,1731372639816,-426.30852762,0.00014019,2]
[342031716,1731372639825,-432.43,0.00014055,2]
[342031717,1731372639835,-432.43,0.00014055,2]
[342031718,1731372639844,-432.43,0.00014055,2]
[342031719,1731372639853,-336.17,0.00014055,2]
[342031720,1731372639863,-986.66,0.00014055,2]
[342031721,1731372639873,-1000.0,0.0001418,2]
[342031722,1731372639882,-150.0,0.00014192,2]
[342031723,1731372639891,-150.0,0.00014192,2]
[342031724,1731372639900,-440.33,0.00014192,2]
[342031725,1731372639909,-362.22,0.00014192,2]
[342031726,1731372639918,-308.49,0.00014192,2]
[342031727,1731372639970,-301.84,0.00014192,2]
[342031729,1731372639979,-433.05,0.00014192,2]
[342031731,1731372639989,-362.22,0.00014192,2]
[342031733,1731372639998,-302.84,0.00014192,2]
[342031735,1731372640007,-150.0,0.00014192,2]
[342031737,1731372640016,-433.05,0.00014192,2]
[342031739,1731372640024,-362.22,0.00014192,2]
[342031741,1731372640034,-150.0,0.00014192,2]
[342031743,1731372640043,-362.22,0.00014192,2]
[342031745,1731372640051,-432.07,0.00014192,2]
[342031747,1731372640061,-723.66,0.00014192,2]
[342031749,1731372640070,-6236.66,0.00014247,2]
[342031751,1731372640079,-500.0,0.00014258,2]
[342031753,1731372640088,-857.06,0.00014258,2]
[342031755,1731372640097,-500.0,0.00014258,2]
[342031757,1731372640107,-500.0,0.00014258,2]
[342031758,1731372640116,-500.0,0.00014258,2]
[342031759,1731372640125,-500.0,0.00014258,2]
[342031760,1731372640134,-500.0,0.00014258,2]
[342031761,1731372640143,-500.0,0.00014258,2]
[342031762,1731372640153,-500.0,0.00014258,2]
[342031763,1731372640163,-326.12,0.00014258,2]
[342031764,1731372640173,-500.0,0.00014258,2]
[342031765,1731372640183,-500.0,0.00014258,2]
[342031766,1731372640192,-500.0,0.00014259,2]
[342031767,1731372640207,-500.0,0.00014259,2]
[342031768,1731372640217,-500.0,0.00014259,2]
[342031769,1731372640227,-500.0,0.00014259,2]
[342031770,1731372640237,-500.0,0.00014259,2]
[342031771,1731372640247,-500.0,0.00014259,2]
[342031772,1731372640257,-500.0,0.00014259,2]
[342031773,1731372640266,-500.0,0.00014259,2]
[342031774,1731372640276,-500.0,0.00014259,2]
[342031775,1731372640286,-500.0,0.00014259,2]
[342031776,1731372640295,-500.0,0.00014259,2]
[342031777,1731372640305,-507.50597659,0.00014259,2]
[342031778,1731372640314,-500.0,0.00014259,2]
[342031779,1731372640323,-225.86714825,0.00014259,2]
[342031780,1731372640332,-500.0,0.00014259,2]
[342031781,1731372640341,-500.0,0.00014259,2]
[342031782,1731372640350,-500.0,0.00014259,2]
[342031783,1731372640359,-500.0,0.00014259,2]
[342031784,1731372640368,-500.0,0.00014259,2]
[342031785,1731372640377,-500.0,0.00014259,2]
[342031786,1731372640387,-1000.0,0.00014259,2]
[342031787,1731372640397,-500.0,0.00014259,2]
[342031788,1731372640406,-500.0,0.00014259,2]
[342031789,1731372640416,-500.0,0.00014259,2]
[342031790,1731372640426,-500.0,0.00014259,2]
[342031791,1731372640435,-500.0,0.00014259,2]
[342031792,1731372640445,-500.0,0.00014259,2]
[342031793,1731372640457,-500.0,0.00014259,2]
[342031794,1731372640467,-500.0,0.00014259,2]
[342031795,1731372640476,-500.0,0.00014259,2]
[342031796,1731372640485,-208.09,0.00014259,2]
[342031797,1731372640495,-484.8,0.00014259,2]
[342031798,1731372640504,-500.0,0.00014259,2]
[342031799,1731372640513,-218.77657947,0.00014259,2]
[342031800,1731372640522,-500.0,0.00014259,2]
[342031801,1731372640532,-194.77,0.00014259,2]
[342031802,1731372640541,-500.0,0.00014259,2]
[342031803,1731372640550,-648.66,0.00014259,2]
[342031804,1731372640559,-500.0,0.00014259,2]
[342031805,1731372640569,-500.0,0.00014259,2]
[342031806,1731372640578,-1619.72,0.00014259,2]
[342031807,1731372640588,-500.0,0.00014259,2]
[342031808,1731372640598,-500.0,0.00014259,2]
[342031809,1731372640608,-500.0,0.00014259,2]
[342031810,1731372640618,-500.0,0.00014259,2]
[342031811,1731372640628,-940.78,0.00014259,2]
[342031812,1731372640638,-500.0,0.00014259,2]
[342031813,1731372640647,-500.0,0.00014259,2]
[342031814,1731372640657,-37880.088,0.0001426,2]
[342031815,1731372640667,-13833.0779,0.0001426,2]
[342031816,1731372640677,-3500.0,0.000143,5]
[342031817,1731372640688,-15291.68104053,0.0001436,2]
[342031818,1731372640700,-500.0,0.00014398,2]
[342031819,1731372640710,-500.0,0.00014398,2]
[342031820,1731372640720,-372.9630304,0.00014398,2]
[342031821,1731372640729,-500.0,0.00014398,2]
[342031822,1731372640740,-500.0,0.00014398,2]
[342031823,1731372640749,-500.0,0.00014398,2]
[342031824,1731372640759,-500.0,0.00014398,2]
[342031825,1731372640769,-500.0,0.00014398,2]
[342031826,1731372640779,-314.68715347,0.00014398,2]
[342031827,1731372640788,-500.0,0.00014398,2]
[342031828,1731372640797,-200.0,0.00014399,2]
[342031829,1731372640807,-12520.9443,0.00014399,2]
[342031830,1731372640816,-44826.5801,0.00014399,2]
[342031831,1731372640826,-231.15259932,0.00014399,2]
[342031832,1731372640835,-193.86955363,0.000144,2]
[342031833,1731372640845,-171.23575503,0.000144,2]
[342031834,1731372640854,-164.33035333,0.000144,2]
[342031835,1731372640864,-700.0,0.000144,5]
[342031836,1731372640874,-580.52,0.00014437,2]
[342031837,1731372640884,-324.38510573,0.00014473,2]
[342031838,1731372640893,-500.0,0.00014473,2]
[342031839,1731372640903,-365.66695574,0.00014488,2]
[342031840,1731372640912,-2372.25982736,0.0001449,2]
[342031841,1731372640922,-365.66695574,0.0001449,2]
[342031842,1731372640931,-175.0,0.00014493,2]
[342031843,1731372640940,-1516.4,0.00014497,2]
[342031844,1731372640952,-1516.4,0.00014498,2]
[342031845,1731372640962,-500.0,0.00014498,2]
[342031846,1731372640972,-466.2,0.00014498,2]
[342031847,1731372640981,-500.0,0.00014498,2]
[342031848,1731372640991,-511.43354155,0.00014498,2]
[342031849,1731372641000,-500.0,0.00014498,2]
[342031850,1731372641010,-500.0,0.00014498,2]
[342031851,1731372641020,-500.0,0.00014498,2]
[342031852,1731372641029,-500.0,0.00014498,2]
[342031853,1731372641038,-500.0,0.00014498,2]
[342031854,1731372641047,-434.1,0.00014498,2]
[342031855,1731372641057,-1029.59,0.00014498,2]
[342031856,1731372641066,-1029.59,0.00014498,2]
[342031857,1731372641075,-909.28,0.00014498,2]
[342031858,1731372641085,-909.28,0.00014498,2]
[342031859,1731372641094,-782.33,0.00014498,2]
[342031860,1731372641103,-782.33,0.00014498,2]
[342031861,1731372641113,-500.0,0.00014498,2]
[342031862,1731372641122,-500.0,0.00014498,2]
[342031863,1731372641131,-1084.44,0.00014498,2]
[342031864,1731372641140,-1084.44,0.00014498,2]
[342031865,1731372641149,-500.0,0.00014498,2]
[342031866,1731372641158,-500.0,0.00014498,2]
[342031867,1731372641167,-500.0,0.00014498,2]
[342031868,1731372641176,-500.0,0.00014498,2]
[342031869,1731372641186,-500.0,0.00014498,2]
[342031870,1731372641195,-500.0,0.00014498,2]
[342031871,1731372641205,-1068.7,0.00014498,7]
[342031872,1731372641214,-1068.7,0.00014498,7]
[342031873,1731372641223,-637.16,0.00014498,2]
[342031874,1731372641233,-637.16,0.00014498,2]
[342031875,1731372641242,-1743.02,0.00014498,2]
[342031876,1731372641251,-1743.02,0.00014498,2]
[342031877,1731372641260,-500.0,0.00014498,2]
[342031878,1731372641270,-611.76,0.00014498,2]
[342031879,1731372641278,-500.0,0.00014498,2]
[342031880,1731372641288,-473.0,0.00014498,2]
[342031881,1731372641297,-500.0,0.00014498,2]
[342031882,1731372641306,-500.0,0.00014498,2]
[342031883,1731372641315,-596.07311177,0.00014498,2]
[342031884,1731372641324,-500.0,0.00014498,2]
[342031885,1731372641333,-500.0,0.00014498,2]
[342031886,1731372641343,-500.0,0.00014498,2]
[342031887,1731372641351,-500.0,0.00014498,2]
[342031888,1731372641361,-299.36,0.00014498,2]
[342031889,1731372641371,-500.0,0.00014498,2]
[342031890,1731372641381,-500.0,0.00014498,2]
[342031891,1731372641390,-1000.0,0.00014498,2]
[342031892,1731372641400,-1000.0,0.00014498,2]
[342031893,1731372641409,-500.0,0.00014498,2]
[342031894,1731372641419,-500.0,0.00014498,2]
[342031895,1731372641429,-500.0,0.00014498,2]